Workbook

Sheet 1
F1: ПРИЛОЖЕНИЕ №1
B2: Примерное двухнедельное меню для организации питания детей в образовательных учреждениях
B3: Вид меню: Горячий завтрак для учащихся 1-4 классов
A4: № п/п | B4: День недели / Блюдо | C4: Номер рецептуры | D4: Выход одного блюда, г. | E4: Энерг. цен. (Ккал) | F4: Пищевые вещества, (г)
F5: Белки | G5: Жиры | H5: Углеводы
B6: 1-я неделя / 1. понедельник
A7: 1 | B7: Каша рисовая вязкая молочная с маслом сливочным, 200/10 | C7: №510 табл.4 | D7: 200/10 | E7: 297 | F7: 6 | G7: 12 | H7: 42
A8: 2 | B8: Чай с сахаром и лимоном, 200/15/7 | C8: №686 сб.2004 г. | D8: 200/15/7 | E8: 59 | F8: 0 | G8: 0 | H8: 15
A9: 3 | B9: Хлеб (порциями) | C9: №1 сб.2004 г. | D9: 35 | E9: 108 | F9: 2 | G9: 0 | H9: 16
A10: 4 | B10: Пирожное песочное Лакомка, 1 шт | D10: 50 | E10: 227 | F10: 2 | G10: 14 | H10: 32
B11: Итого | D11: =210+222+35+50 -> 517 | E11: =SUM(E7:E10) -> 691 | F11: 10 | G11: 26 | H11: 105
B12: 1-я неделя / 2. вторник
A13: 1 | B13: Котлеты Любительские с соусом красным основным, 80/20 | C13: ТТК №286, ТТК №362 | D13: 100 | E13: 205 | F13: 12 | G13: 11 | H13: 12
A14: 2 | B14: Макаронные изделия отварные | C14: №516 сб. 2004 г. | D14: 170 | E14: 213 | F14: 6 | G14: 5 | H14: 36
A15: 3 | B15: Чай полусладкий с черносливом, 200/10/7 | C15: ТТК №515С | D15: 217 | E15: 55 | F15: 0 | G15: 0 | H15: 14
A16: 4 | B16: Батон | C16: ТТК №27 | D16: 33 | E16: 83 | F16: 2 | G16: 1 | H16: 16
B17: Итого | D17: =SUM(D13:D16) -> 520 | E17: =SUM(E13:E16) -> 556 | F17: 21 | G17: 17 | H17: 78
B18: 1-я неделя / 3. среда
A19: 1 | B19: Картофель тушеный с мясом говядины рубленым с доп.гарниром овощи свежие (огурцы) порционно, 200/15 | C19: ТТК №102С, табл.№24 сб. 1996 г. | D19: 200/15 | E19: 249 | F19: 13 | G19: 14 | H19: 19
A20: 2 | B20: Чай полусладкий, 200/10 | C20: ТТк №512С | D20: 200/10 | E20: 40 | F20: 0 | G20: 0 | H20: 10
A21: 3 | B21: Хлеб (порциями) | C21: №1 сб.2004 г. | D21: 25 | E21: 77 | F21: 1 | G21: 0 | H21: 11
A22: 4 | B22: Булочка/батон с кунжутом | C22: №772 сб.2004 г. | D22: 50 | E22: 141 | F22: 4 | G22: 2 | H22: 27
B23: Итого | D23: =215+210+25+50 -> 500 | E23: =SUM(E19:E22) -> 507 | F23: 18 | G23: 15 | H23: 67
B24: 1-я неделя / 4. четверг
A25: 1 | B25: Свекла отварная | C25: ТТК №601С | D25: 60 | E25: 18 | F25: 1 | G25: 0 | H25: 5
A26: 2 | B26: Плов с мясом говядины рубленным, 30/150 | C26: ТТК №107С | D26: 180 | E26: 326 | F26: 13 | G26: 13 | H26: 40
A27: 3 | B27: Чай с сахаром, 200/15 | C27: №685 сб. 2004 г. | D27: 200/15 | E27: 57 | F27: 0 | G27: 0 | H27: 15
A28: 4 | B28: Хлеб (порциями) | C28: №1 сб.2004 г. | D28: 31 | E28: 96 | F28: 2 | G28: 0 | H28: 14
A29: 5 | B29: Вафли неглазированные Белёк, 1 шт | D29: 20 | E29: 99 | F29: 1 | G29: 5 | H29: 9
B30: Итого | D30: =60+180+215+31+20 -> 506 | E30: =SUM(E25:E29) -> 596 | F30: 16 | G30: 18 | H30: 82
B31: 1-я неделя / 5. пятница
A32: 1 | B32: Гуляш из филе птицы, 50/50 | C32: №437 сб.2004 г. | D32: 100 | E32: 211 | F32: 13 | G32: 16 | H32: 4
A33: 2 | B33: Макаронные изделия отварные | C33: №516 сб. 2004 г. | D33: 170 | E33: 213 | F33: 6 | G33: 5 | H33: 36
A34: 3 | B34: Чай с сахаром и лимоном, 200/15/7 | C34: №686 сб.2004 г. | D34: 200/15/7 | E34: 59 | F34: 0 | G34: 0 | H34: 15
A35: 4 | B35: Хлеб (порциями) | C35: №1 сб.2004 г. | D35: 25 | E35: 77 | F35: 1 | G35: 0 | H35: 11
B36: Итого | D36: =100+170+222+25 -> 517 | E36: =SUM(E32:E35) -> 560 | F36: 20 | G36: 22 | H36: 66
B37: 1-я неделя / 6.суббота
A38: 1 | B38: Сосиски для детского питания отварные с овощами (огурцы свежие порционно), 50/60 | C38: №413 сб.2004, табл.24 сб.рец.1996 | D38: 110 | E38: 100 | F38: 6 | G38: 8 | H38: 2
A39: 2 | B39: Каша гречневая вязкая | C39: №510 табл.4 сб.2004 г. | D39: 180 | E39: 189 | F39: 5 | G39: 7 | H39: 27
A40: 3 | B40: Кофейный напиток | C40: ТТК №503С | D40: 200 | E40: 77 | F40: 0 | G40: 0 | H40: 19
A41: 4 | B41: Хлеб (порциями) | C41: №1 сб.2004 г. | D41: 35 | E41: 108 | F41: 2 | G41: 0 | H41: 16
B42: Итого | D42: =SUM(D38:D41) -> 525 | E42: 474 | F42: 14 | G42: 15 | H42: 63
B43: 2-я неделя / 1. понедельник
A44: 1 | B44: Каша молочная Дружба с маслом сливочным, яйцо вареное, 200/5/48/1 шт | C44: ТТК №84, №337 | D44: 200/5/48/1 шт | E44: 328 | F44: 13 | G44: 13 | H44: 40
A45: 2 | B45: Напиток витаминный | C45: ТТК №505С | D45: 200 | E45: 78 | F45: 0 | G45: 0 | H45: 19
A46: 3 | B46: Хлеб (порциями) | C46: №1 сб.2004 г. | D46: 37 | E46: 115 | F46: 2 | G46: 0 | H46: 17
A47: 4 | B47: Пряники (Северные или Зареченские), 1 шт | D47: 39 | E47: 148 | F47: 2 | G47: 2 | H47: 30
B48: Итого | D48: =200+5+48+200+37+39 -> 529 | E48: =SUM(E44:E47) -> 669 | F48: 17 | G48: 16 | H48: 106
B49: 2-я неделя / 2.вторник
A50: 1 | B50: Свекла отварная | C50: ТТК №601С | D50: 60 | E50: 18 | F50: 1 | G50: 0 | H50: 5
A51: 2 | B51: Плов из цыплят, 40/160 | C51: №492 сб.2004 г. | D51: 200 | E51: 305 | F51: 13 | G51: 11 | H51: 43
A52: 3 | B52: Чай полусладкий с курагой, 200/10/7 | C52: ТТК №514С | D52: 217 | E52: 54 | F52: 1 | G52: 0 | H52: 14
A53: 4 | B53: Хлеб (порциями) | C53: №1 сб.2004 г. | D53: 38 | E53: 118 | F53: 2 | G53: 0 | H53: 17
B54: Итого | D54: =SUM(D50:D53) -> 515 | E54: =SUM(E50:E53) -> 495 | F54: =SUM(F50:F53) -> 16 | G54: 12 | H54: 78
B55: 2-я неделя / 3.среда
A56: 1 | B56: Биточки Дружба с соусом красным основным, 80/20 | C56: ТТК №355, ТТК №362 | D56: 100 | E56: 180 | F56: 10 | G56: 11 | H56: 10
A57: 2 | B57: Макаронные изделия отварные | C57: №516 сб. 2004 г. | D57: 170 | E57: 213 | F57: 6 | G57: 5 | H57: 36
A58: 3 | B58: Чай с сахаром, 200/15 | C58: №685 сб. 2004 г. | D58: 200/15 | E58: 57 | F58: 0 | G58: 0 | H58: 15
A59: 4 | B59: Хлеб (порциями) | C59: №1 сб.2004 г. | D59: 29 | E59: 90 | F59: 2 | G59: 0 | H59: 13
B60: Итого | D60: =100+170+215+29 -> 514 | E60: =SUM(E56:E59) -> 540 | F60: 17 | G60: 17 | H60: 75
B61: 2-я неделя / 4. четверг
A62: 1 | B62: Котлеты Любительские с соусом красным основным, 80/20 | C62: ТТК №286, ТТК №362 | D62: 100 | E62: 205 | F62: 12 | G62: 11 | H62: 12
A63: 2 | B63: Каша гречневая вязкая | C63: №510 табл.4 сб.2004 г. | D63: 150 | E63: 158 | F63: 5 | G63: 6 | H63: 22
A64: 3 | B64: Чай с сахаром, 200/15 | C64: №685 сб. 2004 г. | D64: 200/15 | E64: 57 | F64: 0 | G64: 0 | H64: 15
A65: 4 | B65: Хлеб (порциями) | C65: №1 сб.2004 г. | D65: 31 | E65: 96 | F65: 2 | G65: 0 | H65: 14
A66: 5 | B66: Печенье формовое, 1 шт | D66: 15 | E66: 70 | F66: 1 | G66: 3 | H66: 10
B67: Итого | D67: =100+150+215+31+15 -> 511 | E67: =SUM(E62:E66) -> 586 | F67: 20 | G67: 19 | H67: 73
B68: 2-я неделя / 5. пятница
A69: 1 | B69: Рыба, тушенная в томате с овощами (филе минтая) | C69: №374 сб.2004 г. | D69: 100 | E69: 109 | F69: 10 | G69: 5 | H69: 9
A70: 2 | B70: Пюре картофельное | C70: №520 сб.2004 г. | D70: 150 | E70: 146 | F70: 3 | G70: 5 | H70: 18
A71: 3 | B71: Чай с сахаром, 200/15 | C71: №685 сб. 2004 г. | D71: 200/15 | E71: 57 | F71: 0 | G71: 0 | H71: 15
A72: 4 | B72: Хлеб (порциями) | C72: №1 сб.2004 г. | D72: 38 | E72: 118 | F72: 2 | G72: 0 | H72: 17
B73: Итого | D73: =100+150+215+38 -> 503 | E73: =SUM(E69:E72) -> 430 | F73: 15 | G73: 10 | H73: 60
B74: 2-я неделя / 6. суббота
A75: 1 | B75: Паста с сыром, 150/25 | C75: ТТК №301С | D75: 175 | E75: 264 | F75: 11 | G75: 11 | H75: 32
A76: 2 | B76: Чай с сахаром и лимоном, 200/15/5 | C76: №686 сб.2004 г. | D76: 200/15/5 | E76: 58 | F76: 0 | G76: 0 | H76: 15
A77: 3 | B77: Батон | C77: ТТК №27 | D77: 26 | E77: 65 | F77: 2 | G77: 1 | H77: 13
A78: 4 | B78: Пюре фруктовое Яблоко с трубочкой, 1 шт | D78: 125 | E78: 45 | F78: 0 | G78: 0 | H78: 11
B79: Итого | D79: =175+220+26+125 -> 546 | E79: =SUM(E75:E78) -> 432 | F79: 13 | G79: 12 | H79: 71
B81: ОБЩИЕ ИТОГИ ПО ЦИКЛИЧЕСКОМУ МЕНЮ | E81: Эн.цен. | F81: Белки | G81: Жиры | H81: Углеводы
B82: ВСЕГО | E82: =E30+E17+E11+E23+E36+E48+E60+E67+E54+E73+E42+E79 -> 6,536 | F82: =F30+F17+F11+F23+F36+F48+F60+F67+F54+F73+F42+F79 -> 198.16 | G82: 198.08 | H82: 923.79

Sheet 2
F1: ПРИЛОЖЕНИЕ №2
B3: Примерное двухнедельное меню для организации питания в общеобразовательных учреждениях
B4: Вид меню: Дотационное питание
A5: № п/п | B5: День недели / Блюдо | C5: Номер рецептуры | D5: Выход одного блюда, г. | E5: Энерг. цен. (Ккал) | F5: Пищевые вещества, (г.)
F6: Белки | G6: Жиры | H6: Углеводы
B7: 1-я неделя / 1. понедельник
A8: 1 | B8: Каша пшеничная вязкая | C8: Сб.2004 г.№510, табл.4 | D8: 130 | E8: 135 | F8: 4 | G8: 4 | H8: 21
A9: 2 | B9: Чай полусладкий, 200/10 | C9: ТТК №512С | D9: 210 | E9: 40 | F9: 0 | G9: 0 | H9: 10
A10: 3 | B10: Батон | C10: ТТК №27 | D10: 15 | E10: 37 | F10: 1 | G10: 0 | H10: 7
B11: Итого | D11: =SUM(D8:D10) -> 355 | E11: =SUM(E8:E10) -> 212 | F11: =SUM(F8:F10) -> 5 | G11: =SUM(G8:G10) -> 5 | H11: 38
B12: 1-я неделя / 2. вторник
A13: 1 | B13: Макаронные изделия отварные | C13: Сб.2004 г. №516 | D13: 100 | E13: 125 | F13: 3 | G13: 3 | H13: 21
A14: 2 | B14: Чай полусладкий, 200/10 | C14: ТТК №512С | D14: 210 | E14: 40 | F14: 0 | G14: 0 | H14: 10
A15: 3 | B15: Батон | C15: ТТК №27 | D15: 14 | E15: 35 | F15: 1 | G15: 0 | H15: 7
B16: Итого | D16: =SUM(D13:D15) -> 324 | E16: =SUM(E13:E15) -> 200 | F16: =SUM(F13:F15) -> 4 | G16: =SUM(G13:G15) -> 4 | H16: 38
B17: 1-я неделя / 3. среда
A18: 1 | B18: Каша пшенная вязкая | C18: Сб.2004 г.№510, табл.4 | D18: 120 | E18: 131 | F18: 3 | G18: 4 | H18: 19
A19: 2 | B19: Чай полусладкий, 200/10 | C19: ТТК №512С | D19: 210 | E19: 40 | F19: 0 | G19: 0 | H19: 10
A20: 3 | B20: Батон | C20: ТТК №27 | D20: 12 | E20: 30 | F20: 1 | G20: 1 | H20: 6
B21: Итого | D21: =SUM(D18:D20) -> 342 | E21: =SUM(E18:E20) -> 201 | F21: =SUM(F18:F20) -> 4 | G21: =SUM(G18:G20) -> 5 | H21: 35
B22: 1-я неделя / 4. четверг
A23: 1 | B23: Каша овсяная вязкая | C23: Сб.2004 г.№510, табл.4 | D23: 110 | E23: 108 | F23: 3 | G23: 5 | H23: 13
A24: 2 | B24: Чай полусладкий, 200/10 | C24: ТТК №512С | D24: 210 | E24: 40 | F24: 0 | G24: 0 | H24: 10
A25: 3 | B25: Батон | C25: ТТК №27 | D25: 17 | E25: 43 | F25: 1 | G25: 0 | H25: 8
B26: Итого | D26: =SUM(D23:D25) -> 337 | E26: =SUM(E23:E25) -> 191 | F26: =SUM(F23:F25) -> 4 | G26: =SUM(G23:G25) -> 5 | H26: 31
B27: 1-я неделя / 5. пятница
A28: 1 | B28: Каша ячневая вязкая | C28: Сб.2004 г.№510, табл.4 | D28: 130 | E28: 118 | F28: 3 | G28: 4 | H28: 18
A29: 2 | B29: Чай полусладкий, 200/10 | C29: ТТК №512С | D29: 210 | E29: 40 | F29: 0 | G29: 0 | H29: 10
A30: 3 | B30: Батон | C30: ТТК №27 | D30: 20 | E30: 50 | F30: 1 | G30: 0 | H30: 10
B31: Итого | D31: =SUM(D28:D30) -> 360 | E31: =SUM(E28:E30) -> 208 | F31: =SUM(F28:F30) -> 4 | G31: =SUM(G28:G30) -> 5 | H31: 38
B32: 1-я неделя / 6. суббота
A33: 1 | B33: Макаронные изделия отварные | C33: Сб.2004 г. №516 | D33: 100 | E33: 125 | F33: 3 | G33: 3 | H33: 21
A34: 2 | B34: Чай полусладкий, 200/10 | C34: ТТК №512С | D34: 210 | E34: 40 | F34: 0 | G34: 0 | H34: 10
A35: 3 | B35: Батон | C35: ТТК №27 | D35: 14 | E35: 35 | F35: 1 | G35: 0 | H35: 7
B36: Итого | D36: =SUM(D33:D35) -> 324 | E36: =SUM(E33:E35) -> 200 | F36: =SUM(F33:F35) -> 4 | G36: =SUM(G33:G35) -> 4 | H36: 38
B37: 2-я неделя / 1. понедельник
A38: 1 | B38: Каша овсяная вязкая | C38: Сб.2004 г.№510, табл.4 | D38: 110 | E38: 108 | F38: 3 | G38: 5 | H38: 13
A39: 2 | B39: Чай полусладкий, 200/10 | C39: ТТК №512С | D39: 210 | E39: 40 | F39: 0 | G39: 0 | H39: 10
A40: 3 | B40: Батон | C40: ТТК №27 | D40: 17 | E40: 43 | F40: 1 | G40: 0 | H40: 8
B41: Итого | D41: =SUM(D38:D40) -> 337 | E41: =SUM(E38:E40) -> 191 | F41: =SUM(F38:F40) -> 4 | G41: =SUM(G38:G40) -> 5 | H41: 31
B42: 2-я неделя / 2. вторник
A43: 1 | B43: Каша пшеничная вязкая | C43: Сб.2004 г.№510, табл.4 | D43: 130 | E43: 135 | F43: 4 | G43: 4 | H43: 21
A44: 2 | B44: Чай полусладкий, 200/10 | C44: ТТК №512С | D44: 210 | E44: 40 | F44: 0 | G44: 0 | H44: 10
A45: 3 | B45: Батон | C45: ТТК №27 | D45: 15 | E45: 37 | F45: 1 | G45: 0 | H45: 7
B46: Итого | D46: =SUM(D43:D45) -> 355 | E46: =SUM(E43:E45) -> 212 | F46: =SUM(F43:F45) -> 5 | G46: =SUM(G43:G45) -> 5 | H46: 38
B47: 2-я неделя / 3. среда
A48: 1 | B48: Макаронные изделия отварные | C48: Сб.2004 г. №516 | D48: 100 | E48: 125 | F48: 3 | G48: 3 | H48: 21
A49: 2 | B49: Чай полусладкий, 200/10 | C49: ТТК №512С | D49: 210 | E49: 40 | F49: 0 | G49: 0 | H49: 10
A50: 3 | B50: Батон | C50: ТТК №27 | D50: 14 | E50: 35 | F50: 1 | G50: 0 | H50: 7
B51: Итого | D51: =SUM(D48:D50) -> 324 | E51: =SUM(E48:E50) -> 200 | F51: 4 | G51: 4 | H51: 38
B52: 2-я неделя / 4. четверг
A53: 1 | B53: Каша пшенная вязкая | C53: Сб.2004 г.№510, табл.4 | D53: 120 | E53: 131 | F53: 3 | G53: 4 | H53: 19
A54: 2 | B54: Чай полусладкий, 200/10 | C54: ТТК №512С | D54: 210 | E54: 40 | F54: 0 | G54: 0 | H54: 10
A55: 3 | B55: Батон | C55: ТТК №27 | D55: 12 | E55: 30 | F55: 1 | G55: 0 | H55: 6
B56: Итого | D56: =SUM(D53:D55) -> 342 | E56: =SUM(E53:E55) -> 201 | F56: 4 | G56: 5 | H56: 35
B57: 2-я неделя / 5. пятница
A58: 1 | B58: Каша ячневая вязкая | C58: Сб.2004 г.№510, табл.4 | D58: 130 | E58: 118 | F58: 3 | G58: 4 | H58: 18
A59: 2 | B59: Чай полусладкий, 200/10 | C59: ТТК №512С | D59: 210 | E59: 40 | F59: 0 | G59: 0 | H59: 10
A60: 3 | B60: Батон | C60: ТТК №27 | D60: 20 | E60: 50 | F60: 1 | G60: 0 | H60: 10
B61: Итого | D61: =SUM(D58:D60) -> 360 | E61: =SUM(E58:E60) -> 208 | F61: =SUM(F58:F60) -> 4 | G61: =SUM(G58:G60) -> 5 | H61: 38
B62: 2-я неделя / 6. суббота
A63: 1 | B63: Макаронные изделия отварные | C63: Сб.2004 г. №516 | D63: 100 | E63: 125 | F63: 3 | G63: 3 | H63: 21
A64: 2 | B64: Чай полусладкий, 200/10 | C64: ТТК №512С | D64: 210 | E64: 40 | F64: 0 | G64: 0 | H64: 10
A65: 3 | B65: Батон | C65: ТТК №27 | D65: 14 | E65: 35 | F65: 1 | G65: 0 | H65: 7
B66: Итого | D66: =SUM(D63:D65) -> 324 | E66: =SUM(E63:E65) -> 200 | F66: =SUM(F63:F65) -> 4 | G66: =SUM(G63:G65) -> 4 | H66: 38
A68: ОБЩИЕ ИТОГИ ПО ЦИКЛИЧНОМУ МЕНЮ | E68: Эн.цен. | F68: Белки | G68: Жиры | H68: Углеводы
A69: ВСЕГО | E69: =E11+E16+E21+E26+E31+E36+E41+E46+E51+E56+E61+E66 -> 2424.00 | F69: =F11+F16+F21+F26+F31+F36+F41+F46+F51+F56+F61+F66 -> 52.28 | G69: =G11+G16+G21+G26+G31+G36+G41+G46+G51+G56+G61+G66 -> 52.89 | H69: =H11+H16+H21+H26+H31+H36+H41+H46+H51+H56+H61+H66 -> 435.62

Sheet 3
F1: ПРИЛОЖЕНИЕ №3
A2: Примерное двухнедельное меню для организации питания детей в образовательных учреждениях
A3: Вид меню: Горячий завтрак для детей из многодетных семей
A4: № п/п | B4: День недели /Блюдо | C4: Номер рецептуры | D4: Выход одного блюда, г. | E4: Энерг. цен. (Ккал) | F4: Пищевые вещества, (г.)
F5: Белки | G5: Жиры | H5: Углеводы
B6: 1-я неделя / 1. понедельник
A7: 1 | B7: Котлеты Любительские с соусом красным основным, 80/20 | C7: ТТК № 286, ТТК № 362 | D7: 100 | E7: 205 | F7: 12 | G7: 11 | H7: 12
A8: 2 | B8: Макаронные изделия отварные | C8: №516 сб.2004 г. | D8: 180 | E8: 225 | F8: 6 | G8: 6 | H8: 38
A9: 3 | B9: Напиток из шиповника с апельсином | C9: ТТК №501С | D9: 200 | E9: 66 | F9: 0 | G9: 0 | H9: 17
A10: 4 | B10: Хлеб (порциями) | C10: №1 сб. 2004 г. | D10: 33 | E10: 102 | F10: 2 | G10: 0 | H10: 15
A11: 5 | B11: Пряник в индивидуальной упаковке, 1 шт | D11: 40 | E11: 144 | F11: 2 | G11: 2 | H11: 29
B12: Итого | D12: =SUM(D7:D11) -> 553 | E12: =SUM(E7:E11) -> 742 | F12: 23 | G12: 19 | H12: 111
B13: 1-я неделя / 2. вторник
A14: 1 | B14: Гуляш из филе птицы, 50/50 | C14: №437 сб. 2004 г. | D14: 100 | E14: 211 | F14: 13 | G14: 16 | H14: 4
A15: 2 | B15: Пюре картофельное | C15: №520 сб.2004 г. | D15: 180 | E15: 175 | F15: 4 | G15: 7 | H15: 22
A16: 3 | B16: Чай с сахаром и лимоном, 200/15/5 | C16: №686 сб. 2004 г. | D16: 220 | E16: 58 | F16: 0 | G16: 0 | H16: 15
A17: 4 | B17: Хлеб (порциями) | C17: №1 сб. 2004 г. | D17: 35 | E17: 108 | F17: 2 | G17: 0 | H17: 16
A18: 5 | B18: Булочка/батон с маком | C18: №772 сб.2004 | D18: 50 | E18: 141 | F18: 4 | G18: 2 | H18: 27
B19: Итого | D19: =SUM(D14:D18) -> 585 | E19: =SUM(E14:E18) -> 693 | F19: 23 | G19: 25 | H19: 84
B20: 1-я неделя / 3. среда
A21: 1 | B21: Биточки Дружба с соусом сметанным, 80/20 | C21: ТТК № 355, №600 Сб. 2004 г. | D21: 100 | E21: 234 | F21: 12 | G21: 15 | H21: 13
A22: 2 | B22: Каша гречневая вязкая с доп.гарниром овощи соленые (огурцы) порционно, 180/30 | C22: №510 табл.4 сб.2004 г., табл.№24 сб. 1996 г. | D22: 210 | E22: 193 | F22: 6 | G22: 7 | H22: 27
A23: 3 | B23: Чай полусладкий с курагой, 200/10/7 | C23: ТТК №514С | D23: 217 | E23: 54 | F23: 1 | G23: 0 | H23: 14
A24: 4 | B24: Хлеб (порциями) | C24: №1 сб. 2004 г. | D24: 38 | E24: 118 | F24: 2 | G24: 0 | H24: 17
B25: Итого | D25: =SUM(D21:D24) -> 565 | E25: 599 | F25: 21 | G25: 22 | H25: 71
B26: 1-я неделя / 4. четверг
A27: 1 | B27: Рыба, тушенная в томате с овощами (филе минтая) | C27: №374 сб.2004 | D27: 100 | E27: 109 | F27: 10 | G27: 5 | H27: 9
A28: 2 | B28: Рис отварной с доп.гарниром овощи свежие (огурцы) порционно, 180/35 | C28: №304 сб.2017 г., табл.№24 сб. 1996 г. | D28: 215 | E28: 259 | F28: 5 | G28: 7 | H28: 41
A29: 3 | B29: Компот из ягод | C29: ТТК №506С | D29: 200 | E29: 66 | F29: 0 | G29: 0 | H29: 16
A30: 4 | B30: Хлеб (порциями) | C30: №1 сб. 2004 г. | D30: 35 | E30: 108 | F30: 2 | G30: 0 | H30: 16
B31: Итого | D31: =SUM(D27:D30) -> 550 | E31: 542 | F31: 17 | G31: 12 | H31: 83
B32: 1-я неделя / 5. пятница
A33: 1 | B33: Салат из свежей капусты | C33: №45 сб. 2017г. | D33: 100 | E33: 88 | F33: 2 | G33: 5 | H33: 9
A34: 2 | B34: Котлеты Крепыш с соусом красным основным, 75/25 | C34: ТТК №336, ТТК №362 | D34: 100 | E34: 227 | F34: 13 | G34: 14 | H34: 11
A35: 3 | B35: Каша гречневая вязкая | C35: №510 табл.4 сб.2004 г | D35: 180 | E35: 189 | F35: 5 | G35: 7 | H35: 27
A36: 4 | B36: Чай полусладкий с черносливом, 200/10/7 | C36: ТТК №515С | D36: 217 | E36: 55 | F36: 0 | G36: 0 | H36: 14
A37: 5 | B37: Хлеб (порциями) | C37: №1 сб. 2004 г. | D37: 28 | E37: 87 | F37: 2 | G37: 0 | H37: 13
B38: Итого | D38: =SUM(D33:D37) -> 625 | E38: =SUM(E33:E37) -> 646 | F38: =SUM(F33:F37) -> 21 | G38: 26 | H38: 74
B39: 1-я неделя / 6. суббота
A40: 1 | B40: Макаронные изделия с сосиской для детского питания отварные с соусом красным основным, 210/50/20 | C40: №516, №41 сб.2004, ТТК №362 | D40: 280 | E40: 230 | F40: 8 | G40: 6 | H40: 43
A41: 2 | B41: Чай с сахаром и лимоном, 200/15/7 | C41: №686 сб.2004 г. | D41: 222 | E41: 59 | F41: 0 | G41: 0 | H41: 15
A42: 3 | B42: Хлеб (порциями) | C42: №1 сб. 2004 г. | D42: 40 | E42: 124 | F42: 2 | G42: 0 | H42: 18
A43: 4 | B43: Конфета вафельная в шоколадной глазури, 2 шт | D43: =39*2 -> 78 | E43: 416 | F43: 5 | G43: 22 | H43: 49
B44: Итого | D44: =SUM(D40:D43) -> 620 | E44: 829 | F44: 15 | G44: 28 | H44: 126
B45: 2-я неделя / 1.понедельник
A46: 1 | B46: Котлеты Любительские с соусом красным основным, 80/20 | C46: ТТК №286, ТТК №362 | D46: 100 | E46: 205 | F46: 12 | G46: 11 | H46: 12
A47: 2 | B47: Рис отварной с овощным миксом (зам. горошек и кукуруза) | C47: ТТК №300С | D47: 185 | E47: 238 | F47: 4 | G47: 7 | H47: 39
A48: 3 | B48: Чай с сахаром, 200/15 | C48: №685 сб. 2004 г. | D48: 215 | E48: 57 | F48: 0 | G48: 0 | H48: 15
A49: 4 | B49: Батон, 30 г х 2 шт | C49: ТТК №27 | D49: 60 | E49: 150 | F49: 4 | G49: 1 | H49: 29
B50: Итого | D50: =SUM(D46:D49) -> 560 | E50: 650 | F50: 21 | G50: 19 | H50: 95
B51: 2-я неделя / 2.вторник
A52: 1 | B52: Цыплята отварные (голень) | C52: ТТК №287 | D52: 110 | E52: 275 | F52: 23 | G52: 17 | H52: 4
A53: 2 | B53: Макаронные изделия отварные с доп.гарниром горошек зеленый консервированный, припущенный, 200/10 | C53: №516 сб.2004 г., ТТК №602С | D53: 210 | E53: 253 | F53: 7 | G53: 6 | H53: 43
A54: 3 | B54: Напиток апельсиновый | C54: ТТК №510С | D54: 200 | E54: 68 | F54: 0 | G54: 0 | H54: 17
A55: 4 | B55: Батон | C55: ТТК №27 | D55: 37 | E55: 93 | F55: 3 | G55: 1 | H55: 18
B56: Итого | D56: =SUM(D52:D55) -> 557 | E56: 689 | F56: 33 | G56: 24 | H56: 82
B57: 2-я неделя / 3.среда
A58: 1 | B58: Салат из квашеной капусты | C58: №81 сб. 2002 г. | D58: 100 | E58: 83 | F58: 2 | G58: 5 | H58: 8
A59: 2 | B59: Плов из филе цыплят, 50/170 | C59: № 492 сб. 2004 г. | D59: 220 | E59: 353 | F59: 15 | G59: 15 | H59: 44
A60: 3 | B60: Чай с сахаром и лимоном, 200/15/5 | C60: №686 сб.2004 г. | D60: 220 | E60: 58 | F60: 0 | G60: 0 | H60: 15
A61: 4 | B61: Хлеб (порциями) | C61: №1 сб. 2004 г. | D61: 28 | E61: 87 | F61: 2 | G61: 0 | H61: 13
B62: Итого | D62: =SUM(D58:D61) -> 568 | E62: =SUM(E58:E61) -> 581 | F62: 19 | G62: 20 | H62: 80
B63: 2-я неделя / 4. четверг
A64: 1 | B64: Картофель тушеный с мясом говядины рубленым с доп.гарниром овощи соленые (огурцы) порционно, 220/10 | C64: ТТК №102С, сб. рец. 1996 г., табл. №24 | D64: 230 | E64: 273 | F64: 14 | G64: 15 | H64: 21
A65: 2 | B65: Чай с сахаром и лимоном, 200/15/7 | C65: №686 сб. 2004 г. | D65: 222 | E65: 59 | F65: 0 | G65: 0 | H65: 15
A66: 3 | B66: Хлеб (порциями) | C66: №1 сб. 2004 г. | D66: 29 | E66: 90 | F66: 2 | G66: 0 | H66: 13
A67: 4 | B67: Гребешки с повидлом | C67: ТТК №214 | D67: 75 | E67: 210 | F67: 5 | G67: 3 | H67: 41
B68: Итого | D68: =SUM(D64:D67) -> 556 | E68: 632 | F68: 20 | G68: 18 | H68: 90
B69: 2-я неделя / 5.пятница
A70: 1 | B70: Биточки Дружба с соусом красным основным, 80/20 | C70: ТТК №355, ТТК №362 | D70: 100 | E70: 180 | F70: 10 | G70: 11 | H70: 10
A71: 2 | B71: Макаронные изделия отварные | C71: №516 сб.2004 г. | D71: 180 | E71: 225 | F71: 6 | G71: 6 | H71: 38
A72: 3 | B72: Кофейный напиток | C72: ТТК №503С | D72: 200 | E72: 77 | F72: 0 | G72: 0 | H72: 19
A73: 4 | B73: Хлеб (порциями) | C73: №1 сб. 2004 г. | D73: 34 | E73: 105 | F73: 2 | G73: 0 | H73: 15
A74: 5 | B74: Печенье сдобное Домашнее, 1 шт | D74: 37 | E74: 171 | F74: 3 | G74: 7 | H74: 23
B75: Итого | D75: =SUM(D70:D74) -> 551 | E75: =SUM(E70:E74) -> 758 | F75: =SUM(F70:F74) -> 21 | G75: 25 | H75: 106
B76: 2-я неделя / 6.суббота
A77: 1 | B77: Сосиски отварные для детского питания с овощами (огурцы свежие порционно), 50/50 | C77: №413 сб. 2004 г., табл.24 сб.1996 г. | D77: 100 | E77: 98 | F77: 6 | G77: 8 | H77: 1
A78: 2 | B78: Каша гречневая вязкая | C78: №510 табл.4 сб.2004 г | D78: 180 | E78: 189 | F78: 5 | G78: 7 | H78: 27
A79: 3 | B79: Чай с сахаром и лимоном, 200/15/5 | C79: №686 сб.2004 г. | D79: 220 | E79: 58 | F79: 0 | G79: 0 | H79: 15
A80: 4 | B80: Хлеб (порциями) | C80: №1 сб. 2004 г. | D80: 24 | E80: 74 | F80: 1 | G80: 0 | H80: 11
A81: 5 | B81: Печенье бисквитное Лотте Чокопай, 1 шт | D81: 28 | E81: 123 | F81: 1 | G81: 5 | H81: 18
B82: Итого | D82: =SUM(D77:D81) -> 552 | E82: 542 | F82: 14 | G82: 20 | H82: 72
B84: ОБЩИЕ ИТОГИ ПО ЦИКЛИЧЕСКОМУ МЕНЮ | E84: Эн.цен | F84: Белки | G84: Жиры | H84: Углеводы
B85: ВСЕГО | E85: =E12+E19+E25+E31+E38+E44+E50+E56+E62+E68+E75+E82 -> 7,903 | F85: =F12+F19+F25+F31+F38+F44+F50+F56+F62+F68+F75+F82 -> 247 | G85: =G12+G19+G25+G31+G38+G44+G50+G56+G62+G68+G75+G82 -> 258 | H85: =H12+H19+H25+H31+H38+H44+H50+H56+H62+H68+H75+H82 -> 1,072

Sheet 4
F1: ПРИЛОЖЕНИЕ №4
B2: Примерное двухнедельное меню для организации питания детей в образовательных учреждениях
A3: Вид меню: Двухразовое питание для детей с ограниченными возможностями здоровья и детей мобилизованных граждан для учащихся 1-4 классов
A4: № п/п | B4: День недели / Блюдо | C4: Номер рецептуры | D4: Выход одного блюда, г. | E4: Энерг. цен. (Ккал) | F4: Пищевые вещества, (г)
F5: Белки | G5: Жиры | H5: Углеводы
B6: 1-я неделя / 1. понедельник
B7: Завтрак
A8: 1 | B8: Каша рисовая вязкая молочная с маслом сливочным, 200/10 | C8: №510 табл.4 | D8: 210 | E8: 297 | F8: 6 | G8: 12 | H8: 42
A9: 2 | B9: Чай с сахаром и лимоном, 200/15/7 | C9: №686 сб.2004 г. | D9: 222 | E9: 59 | F9: 0 | G9: 0 | H9: 15
A10: 3 | B10: Хлеб (порциями) | C10: №1 сб.2004 г. | D10: 35 | E10: 108 | F10: 2 | G10: 0 | H10: 16
A11: 4 | B11: Пирожное песочное Лакомка, 1 шт | D11: 50 | E11: 227 | F11: 2 | G11: 14 | H11: 32
B12: Обед
A13: 1 | B13: Суп картофельный с горохом | C13: №139 сб.2004 | D13: 250 | E13: 142 | F13: 5 | G13: 4 | H13: 22
A14: 2 | B14: Чай с сахаром, 200/15 | C14: №685 сб. 2004 г. | D14: 215 | E14: 57 | F14: 0 | G14: 0 | H14: 15
A15: 3 | B15: Хлеб (порциями) | C15: № 1 сб. 2004 г. | D15: 24 | E15: 74 | F15: 1 | G15: 0 | H15: 11
A16: 4 | B16: Сосиска в тесте, 25/50 | C16: ТТК №224 | D16: 75 | E16: 189 | F16: 7 | G16: 6 | H16: 27
B17: Итого | D17: =SUM(D8:D16) -> 1081 | E17: 1153 | F17: 24 | G17: 36 | H17: 179
B18: 1-я неделя / 2. вторник
B19: Завтрак
A20: 1 | B20: Котлеты Любительские с соусом красным основным, 80/20 | C20: ТТК №286, ТТК №362 | D20: 100 | E20: 205 | F20: 12 | G20: 11 | H20: 12
A21: 2 | B21: Макаронные изделия отварные | C21: №516 сб. 2004 г. | D21: 170 | E21: 213 | F21: 6 | G21: 5 | H21: 36
A22: 3 | B22: Чай полусладкий с черносливом, 200/10/7 | C22: ТТК №515С | D22: 217 | E22: 55 | F22: 0 | G22: 0 | H22: 14
A23: 4 | B23: Батон | C23: ТТК №27 | D23: 33 | E23: 83 | F23: 2 | G23: 1 | H23: 16
B24: Обед
A25: 1 | B25: Суп картофельный с крупой Рисовое зернышко | C25: № 138 сб. 2004 г. | D25: 200 | E25: 83 | F25: 2 | G25: 2 | H25: 16
A26: 2 | B26: Напиток апельсиновый | C26: ТТК №510С | D26: 200 | E26: 68 | F26: 0 | G26: 0 | H26: 17
A27: 3 | B27: Хлеб (порциями) | C27: № 1 сб. 2004 г. | D27: 28 | E27: 87 | F27: 2 | G27: 0 | H27: 13
A28: 4 | B28: Печенье бисквитное Лотте Чокопай, 1 шт | D28: 28 | E28: 123 | F28: 1 | G28: 5 | H28: 18
B29: Итого | D29: =SUM(D20:D28) -> 976 | E29: 917 | F29: 25 | G29: 25 | H29: 141
B30: 1-я неделя / 3. среда
B31: Завтрак
A32: 1 | B32: Картофель тушеный с мясом говядины рубленым (фарш) с доп.гарниром овощи свежие (огурцы) порционно, 200/15 | C32: ТТК №102С, табл.№24 сб. 1996 г. | D32: 215 | E32: 249 | F32: 13 | G32: 14 | H32: 19
A33: 2 | B33: Чай полусладкий, 200/10 | C33: ТТк №512С | D33: 210 | E33: 40 | F33: 0 | G33: 0 | H33: 10
A34: 3 | B34: Хлеб (порциями) | C34: №1 сб.2004 г. | D34: 25 | E34: 77 | F34: 1 | G34: 0 | H34: 11
A35: 4 | B35: Булочка/батон с кунжутом | C35: №772 сб.2004 г. | D35: 50 | E35: 141 | F35: 4 | G35: 2 | H35: 27
B36: Обед
A37: 1 | B37: Суп картофельный с макаронными изделиями | C37: № 140 сб. 2004 г. | D37: 250 | E37: 121 | F37: 3 | G37: 3 | H37: 17
A38: 2 | B38: Напиток лимонный | C38: ТТК №511С | D38: 200 | E38: 65 | F38: 0 | G38: 0 | H38: 15
A39: 3 | B39: Хлеб (порциями) | C39: № 1 сб. 2004 г. | D39: 32 | E39: 99 | F39: 2 | G39: 0 | H39: 14
A40: 4 | B40: Рогалик с курагой | C40: ТТК №42 | D40: 80 | E40: 256 | F40: 6 | G40: 5 | H40: 46
B41: Итого | D41: =SUM(D32:D40) -> 1062 | E41: 1048 | F41: 28 | G41: 24 | H41: 159
B42: 1-я неделя / 4. четверг
B43: Завтрак
A44: 1 | B44: Свекла отварная | C44: ТТК №601С | D44: 60 | E44: 18 | F44: 1 | G44: 0 | H44: 5
A45: 2 | B45: Плов с мясом говядины рубленным (фарш), 30/150 | C45: ТТК №107С | D45: 180 | E45: 326 | F45: 13 | G45: 13 | H45: 40
A46: 3 | B46: Чай с сахаром, 200/15 | C46: №685 сб. 2004 г. | D46: 215 | E46: 57 | F46: 0 | G46: 0 | H46: 15
A47: 4 | B47: Хлеб (порциями) | C47: №1 сб.2004 г. | D47: 31 | E47: 96 | F47: 2 | G47: 0 | H47: 14
A48: 5 | B48: Вафли неглазированные Белёк, 1 шт | D48: 20 | E48: 99 | F48: 1 | G48: 5 | H48: 9
B49: Обед
A50: 1 | B50: Суп картофельный с крупой Гречишное зернышко | C50: № 138 сб. 2004 г. | D50: 250 | E50: 105 | F50: 2 | G50: 3 | H50: 19
A51: 2 | B51: Чай с сахаром, 200/15 | C51: №685 сб. 2004 г. | D51: 215 | E51: 57 | F51: 0 | G51: 0 | H51: 15
A52: 3 | B52: Хлеб (порциями) | C52: № 1 сб. 2004 г. | D52: 36 | E52: 112 | F52: 2 | G52: 0 | H52: 16
A53: 4 | B53: Ватрушка с творогом | C53: №741 сб. 2004 г. | D53: 75 | E53: 216 | F53: 8 | G53: 7 | H53: 29
B54: Итого | D54: =SUM(D44:D53) -> 1082 | E54: =SUM(E44:E53) -> 1086 | F54: =SUM(F44:F53) -> 29 | G54: 28 | H54: 162
B55: 1-я неделя / 5. пятница
B56: Завтрак
A57: 1 | B57: Гуляш из филе птицы, 50/50 | C57: №437 сб.2004 г. | D57: 100 | E57: 211 | F57: 13 | G57: 16 | H57: 4
A58: 2 | B58: Макаронные изделия отварные | C58: №516 сб. 2004 г. | D58: 170 | E58: 213 | F58: 6 | G58: 5 | H58: 36
A59: 3 | B59: Чай с сахаром и лимоном, 200/15/7 | C59: №686 сб.2004 г. | D59: 222 | E59: 59 | F59: 0 | G59: 0 | H59: 15
A60: 4 | B60: Хлеб (порциями) | C60: №1 сб.2004 г. | D60: 25 | E60: 77 | F60: 1 | G60: 0 | H60: 11
B61: Обед
A62: 1 | B62: Борщ с картофелем со свежей капустой, со сметаной | C62: № 110 сб. 2004 г. | D62: 250 | E62: 109 | F62: 2 | G62: 5 | H62: 11
A63: 2 | B63: Кофейный напиток | C63: ТТК №503С | D63: 200 | E63: 77 | F63: 0 | G63: 0 | H63: 19
A64: 3 | B64: Хлеб (порциями) | C64: №1 сб. 2004 г. | D64: 38 | E64: 118 | F64: 2 | G64: 0 | H64: 17
A65: 4 | B65: Рулет с маком | C65: ТТК №15 | D65: 100 | E65: 366 | F65: 7 | G65: 15 | H65: 51
B66: Итого | D66: =SUM(D57:D65) -> 1105 | E66: 1230 | F66: 32 | G66: 43 | H66: 164
B67: 1-я неделя / 6. суббота
B68: Завтрак
A69: 1 | B69: Сосиски для детского питания отварные с овощами (огурцы свежие порционно), 50/60 | C69: №413 сб.2004, табл.24 сб.рец.1996 | D69: 110 | E69: 100 | F69: 6 | G69: 8 | H69: 2
A70: 2 | B70: Каша гречневая вязкая | C70: №510 табл.4 сб.2004 г. | D70: 180 | E70: 189 | F70: 5 | G70: 7 | H70: 27
A71: 3 | B71: Кофейный напиток | C71: ТТК №503С | D71: 200 | E71: 77 | F71: 0 | G71: 0 | H71: 19
A72: 4 | B72: Хлеб (порциями) | C72: №1 сб.2004 г. | D72: 32 | E72: 99 | F72: 2 | G72: 0 | H72: 14
B73: Завтрак 2
A74: 1 | B74: Сок, 0,2 | C74: №686 сб.2004 г. | D74: 200 | E74: 76 | F74: 1 | G74: 0 | H74: 18
A75: 2 | B75: Изделие бисквитное Мини Маффины, 1 шт | D75: 29 | E75: 113 | F75: 1 | G75: 6 | H75: 15
B76: Итого | D76: =SUM(D69:D75) -> 751 | E76: =SUM(E69:E75) -> 654 | F76: 16 | G76: 20 | H76: 94
B77: 2-я неделя / 1. понедельник
B78: Завтрак
A79: 1 | B79: Каша молочная Дружба с маслом сливочным, яйцо вареное, 200/5/48/1 шт | C79: ТТК №84, №337 | D79: 253 | E79: 328 | F79: 13 | G79: 13 | H79: 40
A80: 2 | B80: Напиток витаминный | C80: ТТК №505С | D80: 200 | E80: 78 | F80: 0 | G80: 0 | H80: 19
A81: 3 | B81: Хлеб (порциями) | C81: №1 сб.2004 г. | D81: 37 | E81: 115 | F81: 2 | G81: 0 | H81: 17
A82: 4 | B82: Пряники (Северные или Зареченские), 1 шт | D82: 39 | E82: 148 | F82: 2 | G82: 2 | H82: 30
B83: Обед
A84: 1 | B84: Суп картофельный с горохом | C84: № 139 сб. 2004 г. | D84: 250 | E84: 142 | F84: 5 | G84: 4 | H84: 22
A85: 2 | B85: Чай с сахаром и лимоном, 200/15/7 | C85: №686 сб.2004 г. | D85: 222 | E85: 59 | F85: 0 | G85: 0 | H85: 15
A86: 3 | B86: Хлеб (порциями) | C86: № 1 сб. 2004 г. | D86: 28 | E86: 87 | F86: 2 | G86: 0 | H86: 13
A87: 4 | B87: Шафран | C87: ТТК №271 | D87: 75 | E87: 228 | F87: 4 | G87: 8 | H87: 35
B88: Итого | D88: =SUM(D79:D87) -> 1104 | E88: 1185 | F88: 28 | G88: 28 | H88: 192
B89: 2-я неделя / 2. вторник
B90: Завтрак
A91: 1 | B91: Свекла отварная | C91: ТТК №601С | D91: 60 | E91: 18 | F91: 1 | G91: 0 | H91: 5
A92: 2 | B92: Плов из цыплят, 40/160 | C92: №492 сб.2004 г. | D92: 200 | E92: 305 | F92: 13 | G92: 11 | H92: 43
A93: 3 | B93: Чай полусладкий с курагой, 200/10/7 | C93: ТТК №514С | D93: 217 | E93: 54 | F93: 1 | G93: 0 | H93: 14
A94: 4 | B94: Хлеб (порциями) | C94: №1 сб.2004 г. | D94: 38 | E94: 118 | F94: 2 | G94: 0 | H94: 17
B95: Обед
A96: 1 | B96: Щи из свежей капусты с картофелем, со сметаной | C96: № 124 сб. 2004 г. | D96: 200 | E96: 77 | F96: 1 | G96: 4 | H96: 6
A97: 2 | B97: Чай полусладкий, 200/10 | C97: №685 сб. 2004 г. | D97: 210 | E97: 40 | F97: 0 | G97: 0 | H97: 10
A98: 3 | B98: Хлеб (порциями) | C98: Сб.2004 г. №1 | D98: 33 | E98: 102 | F98: 2 | G98: 0 | H98: 15
A99: 4 | B99: Рогалик с вареной сгущенкой | C99: ТТК №176 | D99: 75 | E99: 289 | F99: 7 | G99: 9 | H99: 44
B100: Итого | D100: =SUM(D91:D99) -> 1033 | E100: 1003 | F100: 26 | G100: 26 | H100: 154
B101: 2-я неделя / 3. среда
B102: Завтрак
A103: 1 | B103: Биточки Дружба с соусом красным основным, 80/20 | C103: ТТК №355, ТТК №362 | D103: 100 | E103: 180 | F103: 10 | G103: 11 | H103: 10
A104: 2 | B104: Макаронные изделия отварные | C104: №516 сб. 2004 г. | D104: 170 | E104: 213 | F104: 6 | G104: 5 | H104: 36
A105: 3 | B105: Чай с сахаром, 200/15 | C105: №685 сб. 2004 г. | D105: 215 | E105: 57 | F105: 0 | G105: 0 | H105: 15
A106: 4 | B106: Хлеб (порциями) | C106: №1 сб.2004 г. | D106: 29 | E106: 90 | F106: 2 | G106: 0 | H106: 13
B107: Обед
A108: 1 | B108: Суп картофельный с крупой Гречишное зёрнышко | C108: № 140 сб. 2004 г. | D108: 250 | E108: 105 | F108: 2 | G108: 3 | H108: 19
A109: 2 | B109: Компот из ягод | C109: ТТК №506С | D109: 200 | E109: 66 | F109: 0 | G109: 0 | H109: 16
A110: 3 | B110: Хлеб (порциями) | C110: № 1 сб. 2004 г. | D110: 38 | E110: 118 | F110: 2 | G110: 0 | H110: 17
A111: 4 | B111: Десерт фруктовый (яблоко) | D111: 100 | E111: 47 | F111: 0 | G111: 0 | H111: 10
B112: Итого | D112: =SUM(D103:D111) -> 1102 | E112: =SUM(E103:E111) -> 876 | F112: 22 | G112: 20 | H112: 137
B113: 2-я неделя / 4. четверг
B114: Завтрак
A115: 1 | B115: Котлеты Любительские с соусом красным основным, 80/20 | C115: ТТК №286, ТТК №362 | D115: 100 | E115: 205 | F115: 12 | G115: 11 | H115: 12
A116: 2 | B116: Каша гречневая вязкая | C116: №510 табл.4 сб.2004 г. | D116: 150 | E116: 158 | F116: 5 | G116: 6 | H116: 22
A117: 3 | B117: Чай с сахаром, 200/15 | C117: №685 сб. 2004 г. | D117: 215 | E117: 57 | F117: 0 | G117: 0 | H117: 15
A118: 4 | B118: Хлеб (порциями) | C118: №1 сб.2004 г. | D118: 31 | E118: 96 | F118: 2 | G118: 0 | H118: 14
A119: 5 | B119: Печенье формовое, 1 шт | D119: 15 | E119: 70 | F119: 1 | G119: 3 | H119: 10
B120: Обед
A121: 1 | B121: Рассольник ленинградский со сметаной (крупа перловая) | C121: № 132 сб. 2004 г. | D121: 250 | E121: 131 | F121: 2 | G121: 6 | H121: 20
A122: 2 | B122: Чай с сахаром и лимоном, 200/15/7 | C122: №686 сб.2004 г. | D122: 222 | E122: 59 | F122: 0 | G122: 0 | H122: 15
A123: 3 | B123: Хлеб (порциями) | C123: Сб.2004 г. №1 | D123: 28 | E123: 87 | F123: 2 | G123: 0 | H123: 13
A124: 4 | B124: Пирожки печеные с курагой | C124: №738 сб. 2004 г. | D124: 75 | E124: 193 | F124: 5 | G124: 2 | H124: 39
B125: Итого | D125: =SUM(D115:D124) -> 1086 | E125: 1056 | F125: 29 | G125: 27 | H125: 160
B126: 2-я неделя / 5. пятница
B127: Завтрак
A128: 1 | B128: Рыба, тушенная в томате с овощами (филе минтая) | C128: №374 сб.2004 г. | D128: 100 | E128: 109 | F128: 10 | G128: 5 | H128: 9
A129: 2 | B129: Пюре картофельное | C129: №520 сб.2004 г. | D129: 150 | E129: 146 | F129: 3 | G129: 5 | H129: 18
A130: 3 | B130: Чай с сахаром, 200/15 | C130: №685 сб. 2004 г. | D130: 215 | E130: 57 | F130: 0 | G130: 0 | H130: 15
A131: 4 | B131: Хлеб (порциями) | C131: №1 сб.2004 г. | D131: 28 | E131: 87 | F131: 2 | G131: 0 | H131: 13
B132: Обед
A133: 1 | B133: Суп картофельный с макаронными изделиями | C133: № 138 сб. 2004 г. | D133: 250 | E133: 121 | F133: 3 | G133: 3 | H133: 17
A134: 2 | B134: Чай с сахаром и лимоном, 200/15/5 | C134: №686 сб.2004 г. | D134: 220 | E134: 58 | F134: 0 | G134: 0 | H134: 15
A135: 3 | B135: Хлеб (порциями) | C135: № 1 сб. 2004 г. | D135: 26 | E135: 81 | F135: 1 | G135: 0 | H135: 12
A136: 4 | B136: Сосиска в тесте, 25/50 | C136: ТТК №224 | D136: 75 | E136: 189 | F136: 7 | G136: 6 | H136: 27
B137: Итого | D137: =SUM(D128:D136) -> 1064 | E137: 848 | F137: 26 | G137: 19 | H137: 126
B138: 2-я неделя / 6. суббота
B139: Завтрак
A140: 1 | B140: Паста с сыром, 150/25 | C140: ТТК №301С | D140: 175 | E140: 264 | F140: 11 | G140: 11 | H140: 32
A141: 2 | B141: Чай с сахаром и лимоном, 200/15/5 | C141: №686 сб.2004 г. | D141: 220 | E141: 58 | F141: 0 | G141: 0 | H141: 15
A142: 3 | B142: Батон | C142: ТТК №27 | D142: 36 | E142: 90 | F142: 3 | G142: 1 | H142: 17
A143: 4 | B143: Пюре фруктовое Яблоко с трубочкой, 1 шт | D143: 125 | E143: 45 | F143: 0 | G143: 0 | H143: 11
B144: Завтрак 2
A145: 1 | B145: Нектар в ассортименте | C145: №638 сб. 2004 г. | D145: 200 | E145: 132 | F145: 1 | G145: 0 | H145: 34
A146: 2 | B146: Конфета вафельная в шоколадной глазури, 1 шт | D146: 39 | E146: 208 | F146: 2 | G146: 11 | H146: 25
B147: Итого | D147: =SUM(D140:D146) -> 795 | E147: =SUM(E140:E146) -> 797 | F147: 17 | G147: 23 | H147: 134
B149: ОБЩИЕ ИТОГИ ПО ЦИКЛИЧЕСКОМУ МЕНЮ | E149: Эн.цен. | F149: Белки | G149: Жиры | H149: Углеводы
B150: ВСЕГО | E150: =E54+E29+E17+E41+E66+E76+E88+E100+E112+E125+E137+E147 -> 11,853 | F150: =F54+F29+F17+F41+F66+F76+F88+F100+F112+F125+F137+F147 -> 302.06 | G150: =G54+G29+G17+G41+G66+G76+G88+G100+G112+G125+G137+G147 -> 319.11 | H150: =H54+H29+H17+H41+H66+H76+H88+H100+H112+H125+H137+H147 -> 1802.38
B151: ср-дн | E151: =E150/12 -> 987.75 | F151: =F150/12 -> 25.17 | G151: =G150/12 -> 26.59 | H151: =H150/12 -> 150.20
E152: =E151/E159 -> 42.03% | F152: =F151/F159 -> 32.69% | G152: =G151/G159 -> 33.66% | H152: 44.84%
B153: 1 неделя | E153: =E54+E29+E17+E41+E66+E76 -> 6,088.00 | F153: =F54+F29+F17+F41+F66+F76 -> 154.39 | G153: =G54+G29+G17+G41+G66+G76 -> 175.57 | H153: =H54+H29+H17+H41+H66+H76 -> 899.97
B154: ср-дн | E154: =E153/6 -> 1014.67 | F154: =F153/6 -> 25.73 | G154: 29.26 | H154: 150.00
E155: =E154/E159 -> 43.18% | F155: =F154/F159 -> 33.42% | G155: =G154/G159 -> 37.04% | H155: 44.77%
B156: 2 неделя | E156: =E150-E153 -> 5,765.00 | F156: =F150-F153 -> 147.67 | G156: =G150-G153 -> 143.54 | H156: =H150-H153 -> 902.41
B157: ср-дн | E157: =E156/6 -> 960.83 | F157: =F156/6 -> 24.61 | G157: 23.92 | H157: 150.40
E158: =E157/E159 -> 40.89% | F158: =F157/F159 -> 31.96% | G158: =G157/G159 -> 30.28% | H158: =H157/H159 -> 44.90%
B159: Суточная норма | E159: 2,350 | F159: 77 | G159: 79 | H159: 335
B164: Заведующий производством
F165: (расшифровка подписи)

Sheet 5
F1: ПРИЛОЖЕНИЕ №5
B2: Примерное двухнедельное меню для организации питания детей в образовательных учреждениях
A3: Вид меню: Двухразовое питание для детей с ограниченными возможностями здоровья и детей мобилизованных граждан для учащихся 5-11 классов
A4: № п/п | B4: День недели / Блюдо | C4: Номер рецептуры | D4: Выход одного блюда, г. | E4: Энерг. цен. (Ккал) | F4: Пищевые вещества, (г)
F5: Белки | G5: Жиры | H5: Углеводы
B6: 1-я неделя / 1. понедельник
B7: Завтрак
A8: 1 | B8: Котлеты Любительские с соусом красным основным, 80/20 | C8: ТТК № 286, ТТК № 362 | D8: 100 | E8: 205 | F8: 12 | G8: 11 | H8: 12
A9: 2 | B9: Макаронные изделия отварные | C9: №516 сб.2004 г. | D9: 180 | E9: 225 | F9: 6 | G9: 6 | H9: 38
A10: 3 | B10: Напиток из шиповника с апельсином | C10: ТТК №501С | D10: 200 | E10: 66 | F10: 0 | G10: 0 | H10: 17
A11: 4 | B11: Хлеб (порциями) | C11: №1 сб. 2004 г. | D11: 33 | E11: 102 | F11: 2 | G11: 0 | H11: 15
A12: 5 | B12: Пряник в индивидуальной упаковке, 1 шт | D12: 40 | E12: 144 | F12: 2 | G12: 2 | H12: 29
B13: Обед
A14: 1 | B14: Суп картофельный с горохом | C14: № 139 сб.2004 г. | D14: 250 | E14: 142 | F14: 5 | G14: 4 | H14: 22
A15: 2 | B15: Чай с сахаром, 200/15 | C15: №685 сб. 2004 г. | D15: 215 | E15: 57 | F15: 0 | G15: 0 | H15: 15
A16: 3 | B16: Хлеб (порциями) | C16: № 1 сб. 2004 г. | D16: 30 | E16: 93 | F16: 2 | G16: 0 | H16: 14
A17: 4 | B17: Булочка Маковка | C17: ТТК №14 | D17: 50 | E17: 188 | F17: 4 | G17: 7 | H17: 27
B18: ИТОГО | D18: =SUM(D8:D17) -> 1098 | E18: 1222 | F18: 34 | G18: 31 | H18: 188
B19: 1-я неделя / 2. вторник
B20: Завтрак
A21: 1 | B21: Гуляш из филе птицы, 50/50 | C21: №437 сб. 2004 г. | D21: 100 | E21: 211 | F21: 13 | G21: 16 | H21: 4
A22: 2 | B22: Пюре картофельное | C22: №520 сб.2004 г. | D22: 180 | E22: 175 | F22: 4 | G22: 7 | H22: 22
A23: 3 | B23: Чай с сахаром и лимоном, 200/15/5 | C23: №686 сб. 2004 г. | D23: 220 | E23: 58 | F23: 0 | G23: 0 | H23: 15
A24: 4 | B24: Хлеб (порциями) | C24: №1 сб. 2004 г. | D24: 35 | E24: 108 | F24: 2 | G24: 0 | H24: 16
A25: 5 | B25: Булочка/батон с маком | C25: №772 сб.2004 | D25: 50 | E25: 141 | F25: 4 | G25: 2 | H25: 27
B26: Обед
A27: 1 | B27: Суп картофельный с крупой Рисовое зернышко | C27: № 138 сб. 2004 г. | D27: 250 | E27: 103 | F27: 2 | G27: 3 | H27: 20
A28: 2 | B28: Напиток апельсиновый | C28: ТТК №510С | D28: 200 | E28: 68 | F28: 0 | G28: 0 | H28: 17
A29: 3 | B29: Хлеб (порциями) | C29: Сб.2004 г. №1 | D29: 36 | E29: 112 | F29: 2 | G29: 0 | H29: 16
B30: ИТОГО | D30: =SUM(D21:D29) -> 1071 | E30: 976 | F30: 27 | G30: 28 | H30: 136
B31: 1-я неделя / 3. среда
B32: Завтрак
A33: 1 | B33: Биточки Дружба с соусом сметанным, 80/20 | C33: ТТК № 355, №600 Сб. 2004 г. | D33: 100 | E33: 234 | F33: 12 | G33: 15 | H33: 13
A34: 2 | B34: Каша гречневая вязкая с доп.гарниром овощи соленые (огурцы) порционно, 180/30 | C34: №510 табл.4 сб.2004 г., табл.№24 сб. 1996 г. | D34: 210 | E34: 193 | F34: 6 | G34: 7 | H34: 27
A35: 3 | B35: Чай полусладкий с курагой, 200/10/7 | C35: ТТК №514С | D35: 217 | E35: 54 | F35: 1 | G35: 0 | H35: 14
A36: 4 | B36: Хлеб (порциями) | C36: №1 сб. 2004 г. | D36: 38 | E36: 118 | F36: 2 | G36: 0 | H36: 17
B37: Обед
A38: 1 | B38: Суп картофельный с макаронными изделиями | C38: № 140 сб. 2004 г. | D38: 250 | E38: 121 | F38: 3 | G38: 3 | H38: 17
A39: 2 | B39: Напиток лимонный | C39: ТТК №511С | D39: 200 | E39: 65 | F39: 0 | G39: 0 | H39: 15
A40: 3 | B40: Хлеб (порциями) | C40: Сб.2004 г. №1 | D40: 28 | E40: 87 | F40: 2 | G40: 0 | H40: 13
A41: 4 | B41: Булочка/батон с кунжутом | C41: №772 сб.2004 г. | D41: 50 | E41: 141 | F41: 4 | G41: 2 | H41: 27
B42: ИТОГО | D42: =SUM(D33:D41) -> 1093 | E42: 1013 | F42: 29 | G42: 26 | H42: 143
B43: 1-я неделя / 4. четверг
B44: Завтрак
A45: 1 | B45: Рыба, тушенная в томате с овощами (филе минтая) | C45: №374 сб.2004 | D45: 100 | E45: 109 | F45: 10 | G45: 5 | H45: 9
A46: 2 | B46: Рис отварной с доп.гарниром овощи свежие (огурцы) порционно, 180/35 | C46: №304 сб.2017 г., табл.№24 сб. 1996 г. | D46: 215 | E46: 259 | F46: 5 | G46: 7 | H46: 41
A47: 3 | B47: Компот из ягод | C47: ТТК №506С | D47: 200 | E47: 66 | F47: 0 | G47: 0 | H47: 16
A48: 4 | B48: Хлеб (порциями) | C48: №1 сб. 2004 г. | D48: 35 | E48: 108 | F48: 2 | G48: 0 | H48: 16
B49: Обед
A50: 1 | B50: Суп картофельный с крупой Гречишное зёрнышко | C50: № 138 сб. 2004 г. | D50: 250 | E50: 105 | F50: 2 | G50: 3 | H50: 19
A51: 2 | B51: Чай с сахаром и лимоном, 200/15/5 | C51: №686 сб.2004 г. | D51: 220 | E51: 58 | F51: 0 | G51: 0 | H51: 15
A52: 3 | B52: Хлеб (порциями) | C52: Сб.2004 г. №1 | D52: 22 | E52: 68 | F52: 1 | G52: 0 | H52: 10
A53: 4 | B53: Вафли неглазированные Белек, 1 шт | D53: 20 | E53: 99 | F53: 1 | G53: 5 | H53: 9
B54: ИТОГО | D54: =SUM(D45:D53) -> 1062 | E54: 872 | F54: 22 | G54: 20 | H54: 136
B55: 1-я неделя / 5. пятница
B56: Завтрак
A57: 1 | B57: Салат из свежей капусты | C57: №45 сб. 2017г. | D57: 100 | E57: 88 | F57: 2 | G57: 5 | H57: 9
A58: 2 | B58: Котлеты Крепыш с соусом красным основным, 75/25 | C58: ТТК №336, ТТК №362 | D58: 100 | E58: 227 | F58: 13 | G58: 14 | H58: 11
A59: 3 | B59: Каша гречневая вязкая | C59: №510 табл.4 сб.2004 г | D59: 180 | E59: 189 | F59: 5 | G59: 7 | H59: 27
A60: 4 | B60: Чай полусладкий с черносливом, 200/10/7 | C60: ТТК №515С | D60: 217 | E60: 55 | F60: 0 | G60: 0 | H60: 14
A61: 5 | B61: Хлеб (порциями) | C61: №1 сб. 2004 г. | D61: 28 | E61: 87 | F61: 2 | G61: 0 | H61: 13
B62: Обед
A63: 1 | B63: Борщ со свежей капустой и картофелем, со сметаной | C63: № 110 сб. 2004 г. | D63: 250 | E63: 109 | F63: 2 | G63: 5 | H63: 11
A64: 2 | B64: Кофейный напиток | C64: ТТК №503С | D64: 200 | E64: 77 | F64: 0 | G64: 0 | H64: 19
A65: 3 | B65: Хлеб (порциями) | C65: №1 сб. 2004 г. | D65: 33 | E65: 102 | F65: 2 | G65: 0 | H65: 15
B66: ИТОГО | D66: =SUM(D57:D65) -> 1108 | E66: =SUM(E57:E65) -> 934 | F66: 25 | G66: 32 | H66: 118
B67: 1-я неделя / 6. суббота
B68: Завтрак
A69: 1 | B69: Макаронные изделия с сосиской для детского питания отварные с соусом красным основным, 210/50/20 | C69: №516, №41 сб.2004, ТТК №362 | D69: 280 | E69: 230 | F69: 8 | G69: 6 | H69: 43
A70: 2 | B70: Чай с сахаром и лимоном, 200/15/7 | C70: №686 сб.2004 г. | D70: 222 | E70: 59 | F70: 0 | G70: 0 | H70: 15
A71: 3 | B71: Хлеб (порциями) | C71: №1 сб. 2004 г. | D71: 36 | E71: 112 | F71: 2 | G71: 0 | H71: 16
A72: 4 | B72: Конфета вафельная в шоколадной глазури, 2 шт | D72: =39*2 -> 78 | E72: 416 | F72: 5 | G72: 22 | H72: 49
B73: Завтрак 2
A74: 1 | B74: Напиток витаминный | C74: ТТК №505С | D74: 200 | E74: 78 | F74: 0 | G74: 0 | H74: 19
A75: 2 | B75: Изделие бисквитное Мини Маффины, 1 шт | D75: 29 | E75: 113 | F75: 1 | G75: 6 | H75: 15
B76: ИТОГО | D76: =SUM(D69:D75) -> 845 | E76: 1008 | F76: 16 | G76: 34 | H76: 158
B77: 2-я неделя / 1. понедельник
B78: Завтрак
A79: 1 | B79: Котлеты Любительские с соусом красным основным, 80/20 | C79: ТТК №286, ТТК №362 | D79: 100 | E79: 205 | F79: 12 | G79: 11 | H79: 12
A80: 2 | B80: Рис отварной с овощным миксом (зам. горошек и кукуруза) | C80: ТТК №300С | D80: 185 | E80: 238 | F80: 4 | G80: 7 | H80: 39
A81: 3 | B81: Чай с сахаром, 200/15 | C81: №685 сб. 2004 г. | D81: 215 | E81: 57 | F81: 0 | G81: 0 | H81: 15
A82: 4 | B82: Батон, 30 г х 2 шт | C82: ТТК №27 | D82: 60 | E82: 150 | F82: 4 | G82: 1 | H82: 29
B83: Обед
A84: 1 | B84: Суп картофельный с горохом | C84: № 139 сб. 2004 г. | D84: 250 | E84: 142 | F84: 5 | G84: 4 | H84: 22
A85: 2 | B85: Чай с сахаром, 200/15 | C85: № 685 сб. 2004 г. | D85: 215 | E85: 57 | F85: 0 | G85: 0 | H85: 15
A86: 3 | B86: Хлеб (порциями) | C86: Сб.2004 г. №1 | D86: 38 | E86: 118 | F86: 2 | G86: 0 | H86: 17
A87: 4 | B87: Печенье формовое, 2 шт | D87: 30 | E87: 141 | F87: 2 | G87: 5 | H87: 21
B88: ИТОГО | D88: =SUM(D79:D87) -> 1093 | E88: 1108 | F88: 31 | G88: 30 | H88: 170
B89: 2-я неделя / 2. вторник
B90: Завтрак
A91: 1 | B91: Цыплята отварные (голень) | C91: ТТК №287 | D91: 110 | E91: 275 | F91: 23 | G91: 17 | H91: 4
A92: 2 | B92: Макаронные изделия отварные с доп.гарниром горошек зеленый консервированный, припущенный, 200/10 | C92: №516 сб.2004 г., ТТК №602С | D92: 210 | E92: 253 | F92: 7 | G92: 6 | H92: 43
A93: 3 | B93: Напиток апельсиновый | C93: ТТК №510С | D93: 200 | E93: 68 | F93: 0 | G93: 0 | H93: 17
A94: 4 | B94: Батон | C94: ТТК №27 | D94: 37 | E94: 93 | F94: 3 | G94: 1 | H94: 18
B95: Обед
A96: 1 | B96: Щи из свежей капусты с картофелем, со сметаной | C96: № 124 сб. 2004 г. | D96: 250 | E96: 94 | F96: 2 | G96: 6 | H96: 8
A97: 2 | B97: Чай полусладкий с курагой, 200/10/7 | C97: ТТК №514С | D97: 217 | E97: 54 | F97: 1 | G97: 0 | H97: 14
A98: 3 | B98: Хлеб (порциями) | C98: Сб.2004 г. №1 | D98: 32 | E98: 99 | F98: 2 | G98: 0 | H98: 14
B99: ИТОГО | D99: =SUM(D91:D98) -> 1056 | E99: 936 | F99: 37 | G99: 30 | H99: 118
B100: 2-я неделя / 3. среда
B101: Завтрак
A102: 1 | B102: Салат из квашеной капусты | C102: №81 сб. 2002 г. | D102: 100 | E102: 83 | F102: 2 | G102: 5 | H102: 8
A103: 2 | B103: Плов из филе цыплят, 50/170 | C103: № 492 сб. 2004 г. | D103: 220 | E103: 353 | F103: 15 | G103: 15 | H103: 44
A104: 3 | B104: Чай с сахаром и лимоном, 200/15/5 | C104: №686 сб.2004 г. | D104: 220 | E104: 58 | F104: 0 | G104: 0 | H104: 15
A105: 4 | B105: Хлеб (порциями) | C105: №1 сб. 2004 г. | D105: 28 | E105: 87 | F105: 2 | G105: 0 | H105: 13
B106: Обед
A107: 1 | B107: Суп картофельный с крупой Гречишное зёрнышко | C107: №138 сб.2004 | D107: 250 | E107: 105 | F107: 2 | G107: 3 | H107: 19
A108: 2 | B108: Чай с сахаром, 200/15 | C108: №685 сб. 2004 г. | D108: 215 | E108: 57 | F108: 0 | G108: 0 | H108: 15
A109: 3 | B109: Хлеб (порциями) | C109: № 1 сб. 2004 г. | D109: 31 | E109: 96 | F109: 2 | G109: 0 | H109: 14
A110: 4 | B110: Булочка Российская | C110: №775 сб. 2004 г. | D110: 60 | E110: 196 | F110: 4 | G110: 5 | H110: 34
B111: ИТОГО | D111: =SUM(D102:D110) -> 1124 | E111: 1035 | F111: 27 | G111: 28 | H111: 162
B112: 2-я неделя / 4. четверг
B113: Завтрак
A114: 1 | B114: Картофель тушеный с мясом говядины рубленым с доп.гарниром овощи соленые (огурцы) порционно, 220/10 | C114: ТТК №102С, сб. рец. 1996 г., табл. №24 | D114: 230 | E114: 273 | F114: 14 | G114: 15 | H114: 21
A115: 2 | B115: Чай с сахаром и лимоном, 200/15/7 | C115: №686 сб. 2004 г. | D115: 222 | E115: 59 | F115: 0 | G115: 0 | H115: 15
A116: 3 | B116: Хлеб (порциями) | C116: №1 сб. 2004 г. | D116: 29 | E116: 90 | F116: 2 | G116: 0 | H116: 13
A117: 4 | B117: Гребешки с повидлом | C117: ТТК №214 | D117: 75 | E117: 210 | F117: 5 | G117: 3 | H117: 41
B118: Обед
A119: 1 | B119: Рассольник ленинградский со сметаной (крупа перловая) | C119: № 132 сб. 2004 г. | D119: 250 | E119: 131 | F119: 2 | G119: 6 | H119: 20
A120: 2 | B120: Чай полусладкий, 200/10 | C120: ТТК №512С | D120: 210 | E120: 40 | F120: 0 | G120: 0 | H120: 10
A121: 3 | B121: Хлеб (порциями) | C121: Сб.2004 г. №1 | D121: 37 | E121: 115 | F121: 2 | G121: 0 | H121: 17
B122: ИТОГО | D122: =SUM(D114:D121) -> 1053 | E122: 918 | F122: 24 | G122: 24 | H122: 136
B123: 2-я неделя / 5. пятница
B124: Завтрак
A125: 1 | B125: Биточки Дружба с соусом красным основным, 80/20 | C125: ТТК №355, ТТК №362 | D125: 100 | E125: 180 | F125: 10 | G125: 11 | H125: 10
A126: 2 | B126: Макаронные изделия отварные | C126: №516 сб.2004 г. | D126: 180 | E126: 225 | F126: 6 | G126: 6 | H126: 38
A127: 3 | B127: Кофейный напиток | C127: ТТК №503С | D127: 200 | E127: 77 | F127: 0 | G127: 0 | H127: 19
A128: 4 | B128: Хлеб (порциями) | C128: №1 сб. 2004 г. | D128: 34 | E128: 105 | F128: 2 | G128: 0 | H128: 15
A129: 5 | B129: Печенье сдобное Домашнее, 1 шт | D129: 37 | E129: 171 | F129: 3 | G129: 7 | H129: 23
B130: Обед
A131: 1 | B131: Суп картофельный с макаронными изделиями | C131: № 140 сб.2004 г. | D131: 250 | E131: 121 | F131: 3 | G131: 3 | H131: 17
A132: 2 | B132: Чай полусладкий, 200/10 | C132: ТТК №512С | D132: 210 | E132: 40 | F132: 0 | G132: 0 | H132: 10
A133: 3 | B133: Хлеб (порциями) | C133: № 1 сб. 2004 г. | D133: 27 | E133: 84 | F133: 1 | G133: 0 | H133: 12
A134: 4 | B134: Пирожки печеные с повидлом | C134: ТТК №738 сб.2004 | D134: 75 | E134: 204 | F134: 4 | G134: 2 | H134: 43
B135: ИТОГО | D135: =SUM(D125:D134) -> 1113 | E135: 1207 | F135: 29 | G135: 29 | H135: 188
B136: 2-я неделя / 6. суббота
B137: Завтрак
A138: 1 | B138: Сосиски отварные для детского питания с овощами (огурцы свежие порционно), 50/50 | C138: №413 сб. 2004 г., табл.24 сб.1996 г. | D138: 100 | E138: 98 | F138: 6 | G138: 8 | H138: 1
A139: 2 | B139: Каша гречневая вязкая | C139: №510 табл.4 сб.2004 г | D139: 180 | E139: 189 | F139: 5 | G139: 7 | H139: 27
A140: 3 | B140: Чай с сахаром и лимоном, 200/15/5 | C140: №686 сб.2004 г. | D140: 220 | E140: 58 | F140: 0 | G140: 0 | H140: 15
A141: 4 | B141: Хлеб (порциями) | C141: №1 сб. 2004 г. | D141: 24 | E141: 74 | F141: 1 | G141: 0 | H141: 11
A142: 5 | B142: Печенье бисквитное Лотте Чокопай, 1 шт | D142: 28 | E142: 123 | F142: 1 | G142: 5 | H142: 18
B143: Завтрак 2
A144: 1 | B144: Чай с сахаром и лимоном, 200/15/7 | C144: №686 сб. 2004 г. | D144: 222 | E144: 59 | F144: 0 | G144: 0 | H144: 15
A145: 2 | B145: Изделие бисквитное Мини рулет (вареная сгущенка), 1 шт | D145: 35 | E145: 167 | F145: 2 | G145: 7 | H145: 24
B146: ИТОГО | D146: =SUM(D138:D145) -> 809 | E146: 768 | F146: 16 | G146: 27 | H146: 111
B148: ОБЩИЕ ИТОГИ ПО ЦИКЛИЧНОМУ МЕНЮ | E148: Эн.цен. (Ккал) | F148: Белки | G148: Жиры | H148: Углеводы
B149: ВСЕГО | E149: =E18+E30+E42+E54+E66+E76+E88+E99+E111+E122+E135+E146 -> 11997 | F149: =F18+F30+F42+F54+F66+F76+F88+F99+F111+F122+F135+F146 -> 317 | G149: =G18+G30+G42+G54+G66+G76+G88+G99+G111+G122+G135+G146 -> 340 | H149: =H18+H30+H42+H54+H66+H76+H88+H99+H111+H122+H135+H146 -> 1763
